fUSD/lending_fUSD_20250207
["ID","MTS","AMOUNT","RATE_DAILY","PERIOD"]
[352120943,1738954273714,-500.0,0.00016712,2]
[352120944,1738954273724,-500.0,0.00016712,2]
[352120945,1738954273733,-500.0,0.00016712,2]
[352120946,1738954273743,-835.62,0.00016712,2]
[352120947,1738954273752,-500.0,0.00016712,2]
[352120948,1738954273762,-1733.14,0.00016712,2]
[352120949,1738954273779,-500.0,0.00016712,2]
[352120950,1738954273788,-582.31,0.00016712,2]
[352120951,1738954273797,-500.0,0.00016712,2]
[352120952,1738954273806,-537.85,0.00016712,2]
[352120953,1738954273815,-500.0,0.00016712,2]
[352120954,1738954273829,-500.0,0.00016712,2]
[352120955,1738954273838,-500.0,0.00016712,2]
[352120956,1738954273847,-1341.01,0.00016712,2]
[352120957,1738954273857,-500.0,0.00016712,2]
[352120958,1738954273866,-500.0,0.00016712,2]
[352120959,1738954273875,-2909.14,0.00016712,2]
[352120960,1738954273884,-500.0,0.00016712,2]
[352120961,1738954273893,-500.0,0.00016712,2]
[352120962,1738954273902,-500.0,0.00016712,2]
[352120963,1738954273911,-297.8,0.00016712,2]
[352120964,1738954273920,-150.0,0.00016712,2]
[352120965,1738954273929,-150.0,0.00016714,2]
[352120966,1738954273938,-150.0,0.00016723,2]
[352120967,1738954273947,-150.0,0.00016726,2]
[352120968,1738954273956,-500.0,0.00016739,2]
[352120969,1738954273970,-1419.0,0.00016739,2]
[352120970,1738954273979,-200.0,0.00016741,2]
[352120971,1738954273990,-200.0,0.00016741,2]
[352120972,1738954273999,-4000.0,0.00016748,3]
[352120973,1738954274008,-151.0,0.00016748,2]
[352120974,1738954274017,-3365.898039,0.00016748,2]
[352120975,1738954274026,-3365.898039,0.00016748,2]
[352120976,1738954274035,-151.0,0.00016748,2]
[352120977,1738954274044,-158.492192,0.00016748,2]
[352120978,1738954274053,-150.0,0.00016748,2]
[352120979,1738954274062,-150.0,0.00016749,2]
[352120980,1738954274071,-150.0,0.00016752,2]
[352120981,1738954274081,-1000.0,0.00016752,2]
[352120982,1738954274090,-930.21581456,0.00016753,10]
[352120983,1738954274099,-150.0,0.00016757,2]
[352120984,1738954274108,-150.0,0.00016765,2]
[352120985,1738954274120,-500.0,0.00016767,2]
[352120986,1738954274129,-1419.0,0.00016767,2]
[352120987,1738954274139,-150.0,0.0001677,2]
[352120988,1738954274148,-151.0,0.00016776,2]
[352120989,1738954274158,-1745.028722,0.00016776,2]
[352120990,1738954274167,-1745.028722,0.00016776,2]
[352120991,1738954274176,-479.269816,0.00016776,2]
[352120992,1738954274185,-479.269816,0.00016776,2]
[352120993,1738954274194,-151.0,0.00016776,2]
[352120994,1738954274204,-431.0,0.0001678,2]
[352120995,1738954274214,-285.71,0.00016785,2]
[352120996,1738954274223,-162.55,0.00016791,2]
[352120997,1738954274232,-500.0,0.00016794,2]
[352120998,1738954274241,-1419.0,0.00016794,2]
[352120999,1738954274250,-2000.0,0.00016799,2]
[352121000,1738954274259,-2000.0,0.00016799,2]
[352121001,1738954274267,-2000.0,0.00016799,2]
[352121002,1738954274277,-2000.0,0.00016799,2]
[352121003,1738954274286,-2000.0,0.00016799,2]
[352121004,1738954274295,-2000.0,0.00016799,2]
[352121005,1738954274304,-541.12139592,0.000168,2]
[352121006,1738954274314,-1858858.2905934,0.000168,3]
[352121007,1738954274324,-3119.02,0.000168,2]
[352121008,1738954274333,-141341.56782319,0.000168,3]
[352121009,1738954274342,-135154.51361642,0.000168,3]
[352121010,1738954274352,-150.0,0.000168,2]
[352121011,1738954274361,-150.0,0.000168,2]
[352121012,1738954274370,-150.0,0.000168,2]
[352121013,1738954274379,-150.0,0.000168,2]
[352121014,1738954274389,-2377.92185037,0.000168,2]
[352121015,1738954274398,-1086.775734,0.000168,2]
[352121016,1738954274407,-159.66849621,0.000168,2]
[352121017,1738954274416,-1651.92986185,0.000168,2]
[352121018,1738954274426,-179631.1837107,0.000168,3]
[352121019,1738954274796,-493500.00000005,0.000168,3]
[352121020,1738954274807,-22851.80260568,0.000168,3]
[352121021,1738954275483,-345.71762543,0.00013509,2]
[352121022,1738954275493,-500.0,0.00016438,2]
[352121023,1738954275502,-500.0,0.00016438,2]
[352121024,1738954275512,-500.0,0.00016438,2]
[352121025,1738954275521,-500.0,0.00016438,2]
[352121026,1738954275531,-500.0,0.00016438,2]
[352121027,1738954275541,-500.0,0.00016575,2]
[352121028,1738954275550,-637.13,0.00016575,2]
[352121029,1738954275559,-500.0,0.00016575,2]
[352121030,1738954275569,-500.0,0.00016575,2]
[352121031,1738954275580,-443.23684233,0.0001671,2]
[352121032,1738954275589,-500.0,0.00016712,2]
[352121033,1738954275599,-5156.14004818,0.000168,3]
[352121034,1738954275614,-2705.44508991,0.000168,3]
[352121035,1738954275626,-3807.52556252,0.000168,3]
[352121036,1738954275637,-3141.46497633,0.000168,3]
[352121037,1738954275687,-1614.20352656,0.000168,3]
[352121038,1738954275704,-500.0,0.00016438,2]
[352121039,1738954275714,-17303.61090754,0.000168,3]
[352121040,1738954275746,-550.13543148,0.00016438,2]
[352121044,1738954541822,3000.0,0.0002,120]
[352121046,1738954777003,-1000.0,0.00013371,2]
[352121047,1738954777026,-1268.72,0.00013664,2]
[352121048,1738954777051,-150.0,0.00014488,2]
[352121049,1738954777071,-150.0,0.00014708,2]
[352121050,1738954777093,-1000.0,0.00014741,2]
[352121051,1738954777114,-23900.0,0.0001526,2]
[352121052,1738954777136,-1000.0,0.00015407,2]
[352121053,1738954777156,-691.08,0.00015426,2]
[352121054,1738954777176,-871.6,0.00015468,2]
[352121055,1738954777197,-6915.54,0.00015485,2]
[352121056,1738954777218,-2000.0,0.0001551,2]
[352121057,1738954777243,-500.0,0.00015563,2]
[352121058,1738954777265,-500.0,0.00015563,2]
[352121059,1738954777287,-374.88,0.00015563,2]
[352121060,1738954777308,-370.08,0.00015563,2]
[352121061,1738954777331,-369.3,0.00015563,2]
[352121062,1738954777353,-308.15,0.00015612,2]
[352121063,1738954777374,-200.0,0.00015612,2]
[352121064,1738954777395,-168.41,0.0001574,2]
[352121065,1738954777416,-920.03,0.00015831,2]
[352121066,1738954777439,-150.0,0.0001586,2]
[352121067,1738954777460,-1268.72,0.00015928,2]
[352121068,1738954777481,-1000.0,0.00016111,2]
[352121069,1738954777502,-150.99,0.00016116,2]
[352121070,1738954777797,-4638.52,0.00016116,2]
[352121071,1738954777820,-299.99,0.00016116,4]
[352121072,1738954777841,-357.09525468,0.00016338,2]
[352121073,1738954777863,-3992.73977112,0.00016371,2]
[352121074,1738954777884,-999.0,0.00016374,2]
[352121075,1738954777908,-367.68,0.00016437,2]
[352121076,1738954777931,-378.83,0.00016437,2]
[352121077,1738954777957,-567.55,0.00016437,2]
[352121078,1738954777979,-150.0,0.00016437,2]
[352121079,1738954778002,-500.0,0.00016438,2]
[352121080,1738954778022,-500.0,0.00016438,2]
[352121081,1738954778047,-500.0,0.00016438,2]
[352121082,1738954778068,-500.0,0.00016438,2]
[352121083,1738954778090,-500.0,0.00016438,2]
[352121084,1738954778111,-500.0,0.00016438,2]
[352121085,1738954778132,-500.0,0.00016438,2]
[352121086,1738954778153,-523.95496061,0.00016438,2]
[352121087,1738954778174,-500.0,0.00016438,2]
[352121088,1738954778195,-500.0,0.00016438,2]
[352121089,1738954778216,-291.27991217,0.00016438,2]
[352121090,1738954778238,-500.0,0.00016438,2]
[352121091,1738954778260,-500.0,0.00016438,2]
[352121092,1738954778281,-500.0,0.00016438,2]
[352121093,1738954778303,-500.0,0.00016438,2]
[352121094,1738954778323,-238.31206996,0.00016438,2]
[352121095,1738954778345,-500.0,0.00016438,2]
[352121096,1738954778367,-500.0,0.00016438,2]
[352121097,1738954778390,-500.0,0.00016438,2]
[352121098,1738954778414,-500.0,0.00016438,2]
[352121099,1738954778435,-500.0,0.00016438,2]
[352121100,1738954778456,-500.0,0.00016438,2]
[352121101,1738954778478,-500.0,0.00016438,2]
[352121102,1738954778500,-500.0,0.00016438,2]
[352121103,1738954778522,-500.0,0.00016438,2]
[352121104,1738954778543,-500.0,0.00016438,2]
[352121105,1738954778566,-500.0,0.00016438,2]
[352121106,1738954778588,-500.0,0.00016438,2]
[352121107,1738954778609,-500.0,0.00016438,2]
[352121108,1738954778630,-500.0,0.00016438,2]
[352121109,1738954778651,-500.0,0.00016438,2]
[352121110,1738954778673,-500.0,0.00016438,2]
[352121111,1738954778694,-500.0,0.00016438,2]
[352121112,1738954778717,-500.0,0.00016438,2]
[352121113,1738954778738,-500.0,0.00016438,2]
[352121114,1738954778770,-500.0,0.00016438,2]
[352121115,1738954778794,-1000.0,0.00016438,60]
[352121116,1738954778817,-500.0,0.00016438,2]
[352121117,1738954778840,-500.0,0.00016438,2]
[352121118,1738954778863,-500.0,0.00016438,2]
[352121119,1738954778885,-500.0,0.00016438,2]
[352121120,1738954778908,-500.0,0.00016438,2]
[352121121,1738954778932,-500.0,0.00016438,2]
[352121122,1738954778960,-505.58414222,0.00016438,2]
[352121123,1738954778984,-500.0,0.00016438,2]
[352121124,1738954779008,-500.0,0.00016438,2]
[352121125,1738954779032,-500.0,0.00016438,2]
[352121126,1738954779056,-500.0,0.00016438,2]
[352121127,1738954779079,-500.0,0.00016438,2]
[352121128,1738954779102,-500.0,0.00016438,2]
[352121129,1738954779124,-500.0,0.00016438,2]
[352121130,1738954779146,-500.0,0.00016438,2]
[352121131,1738954779167,-500.0,0.00016438,2]
[352121132,1738954779188,-500.0,0.00016438,2]
[352121133,1738954779210,-500.0,0.00016438,2]
[352121134,1738954779233,-500.0,0.00016438,2]
[352121135,1738954779256,-500.0,0.00016438,2]
[352121136,1738954779279,-500.0,0.00016438,2]
[352121137,1738954779300,-500.0,0.00016438,2]
[352121138,1738954779323,-500.0,0.00016438,2]
[352121139,1738954779345,-1444.51,0.00016438,2]
[352121140,1738954779370,-500.0,0.00016438,2]
[352121141,1738954779392,-500.0,0.00016438,2]
[352121142,1738954779415,-500.0,0.00016438,2]
[352121143,1738954779438,-500.0,0.00016438,2]
[352121144,1738954779460,-500.0,0.00016438,2]
[352121145,1738954779484,-500.0,0.00016438,2]
[352121146,1738954779506,-500.0,0.00016438,2]
[352121147,1738954779529,-1312.39,0.00016438,2]
[352121148,1738954779551,-500.0,0.00016438,2]
[352121149,1738954779573,-461.47536077,0.00016438,2]
[352121150,1738954779596,-500.0,0.00016438,2]
[352121151,1738954779621,-500.0,0.00016438,2]
[352121152,1738954779645,-500.0,0.00016438,2]
[352121153,1738954779667,-500.0,0.00016438,2]
[352121154,1738954779689,-500.0,0.00016438,2]
[352121155,1738954779712,-500.0,0.00016438,2]
[352121156,1738954779735,-500.0,0.00016438,2]
[352121157,1738954779758,-500.0,0.00016438,2]
[352121158,1738954779781,-500.0,0.00016438,2]
[352121159,1738954779803,-500.0,0.00016438,2]
[352121160,1738954779825,-500.0,0.00016438,2]
[352121161,1738954779847,-500.0,0.00016438,2]
[352121162,1738954779868,-500.0,0.00016438,2]
[352121163,1738954779890,-500.0,0.00016438,2]
[352121164,1738954779912,-693.92,0.00016438,2]
[352121165,1738954779934,-500.0,0.00016438,2]
[352121166,1738954779959,-500.0,0.00016438,2]
[352121167,1738954779980,-500.0,0.00016438,2]
[352121168,1738954780004,-500.0,0.00016438,2]
[352121169,1738954780026,-500.0,0.00016438,2]
[352121170,1738954780048,-500.0,0.00016438,2]
[352121171,1738954780071,-1256.27,0.00016438,2]
[352121172,1738954780093,-500.0,0.00016438,2]
[352121173,1738954780115,-500.0,0.00016438,2]
[352121174,1738954780137,-500.0,0.00016438,2]
[352121175,1738954780160,-500.0,0.00016438,2]
[352121176,1738954780184,-764.13,0.00016438,2]
[352121177,1738954780207,-885.28,0.00016438,2]
[352121178,1738954780229,-500.0,0.00016438,2]
[352121179,1738954780253,-500.0,0.00016438,2]
[352121180,1738954780275,-500.0,0.00016438,2]
[352121181,1738954780297,-500.0,0.00016438,2]
[352121182,1738954780319,-500.0,0.00016438,2]
[352121183,1738954780343,-500.0,0.00016438,2]
[352121184,1738954780365,-500.0,0.00016438,2]
[352121185,1738954780388,-500.0,0.00016438,2]
[352121186,1738954780411,-500.0,0.00016438,2]
[352121187,1738954780433,-500.0,0.00016438,2]
[352121188,1738954780455,-500.0,0.00016438,2]
[352121189,1738954780478,-500.0,0.00016438,2]
[352121190,1738954780500,-500.0,0.00016438,2]
[352121191,1738954780522,-1132.91,0.00016438,2]
[352121192,1738954780544,-500.0,0.00016438,2]
[352121193,1738954780566,-500.0,0.00016438,2]
[352121194,1738954780589,-500.0,0.00016438,2]
[352121195,1738954780611,-500.0,0.00016438,2]
[352121196,1738954780632,-500.0,0.00016438,2]
[352121197,1738954780656,-500.0,0.00016438,2]
[352121198,1738954780677,-500.0,0.00016438,2]
[352121199,1738954780699,-500.0,0.00016438,2]
[352121200,1738954780723,-500.0,0.00016438,2]
[352121201,1738954780745,-500.0,0.00016438,2]
[352121202,1738954780768,-500.0,0.00016438,2]
[352121203,1738954780791,-500.0,0.00016438,2]
[352121204,1738954780812,-504.21626028,0.00016438,2]
[352121205,1738954780833,-500.0,0.00016438,2]
[352121206,1738954780855,-500.0,0.00016438,2]
[352121207,1738954780876,-500.0,0.00016438,2]
[352121208,1738954780898,-500.0,0.00016438,2]
[352121209,1738954780925,-500.0,0.00016438,2]
[352121210,1738954780951,-500.0,0.00016438,2]
[352121211,1738954780975,-500.0,0.00016438,2]
[352121212,1738954780998,-743.59,0.00016438,2]
[352121213,1738954781021,-500.0,0.00016438,2]
[352121214,1738954781047,-500.0,0.00016438,2]
[352121215,1738954781068,-500.0,0.00016438,2]
[352121216,1738954781091,-500.0,0.00016438,2]
[352121217,1738954781112,-500.0,0.00016438,2]
[352121218,1738954781136,-500.0,0.00016438,2]
[352121219,1738954781158,-500.0,0.00016438,2]
[352121220,1738954781181,-1364.53,0.00016438,2]
[352121221,1738954781203,-504.26,0.00016438,2]
[352121222,1738954781226,-500.0,0.00016438,2]
[352121223,1738954781248,-500.0,0.00016438,2]
[352121224,1738954781270,-500.0,0.00016438,2]
[352121225,1738954781293,-500.0,0.00016438,2]
[352121226,1738954781315,-500.0,0.00016438,2]
[352121227,1738954781341,-500.0,0.00016438,2]
[352121228,1738954781364,-500.0,0.00016438,2]
[352121229,1738954781387,-1306.37,0.00016438,2]
[352121230,1738954781409,-500.0,0.00016438,2]
[352121231,1738954781431,-500.0,0.00016438,2]
[352121232,1738954781453,-500.0,0.00016438,2]
[352121233,1738954781478,-500.0,0.00016438,2]
[352121234,1738954781500,-792.31,0.00016438,2]
[352121235,1738954781524,-500.0,0.00016438,2]
[352121236,1738954781547,-500.0,0.00016438,2]
[352121237,1738954781570,-500.0,0.00016438,2]
[352121238,1738954781594,-500.0,0.00016438,2]
[352121239,1738954781617,-500.0,0.00016438,2]
[352121240,1738954781640,-500.0,0.00016438,2]
[352121241,1738954781662,-500.0,0.00016438,2]
[352121242,1738954781684,-500.0,0.00016438,2]
[352121243,1738954781706,-500.0,0.00016438,2]
[352121244,1738954781729,-500.0,0.00016438,2]
[352121245,1738954781752,-500.0,0.00016438,2]
[352121246,1738954781774,-500.0,0.00016438,2]
[352121247,1738954781796,-500.0,0.00016438,2]
[352121248,1738954781818,-1323.32,0.00016438,2]
[352121249,1738954781840,-500.0,0.00016438,2]
[352121250,1738954781863,-504.72278917,0.00016438,2]
[352121251,1738954781887,-500.0,0.00016438,2]
[352121252,1738954782196,-500.0,0.00016438,2]
[352121253,1738954782221,-641.57919024,0.00016438,2]
[352121254,1738954782245,-500.0,0.00016438,2]
[352121255,1738954782267,-338.85,0.00016438,2]
[352121256,1738954782289,-500.0,0.00016438,2]
[352121257,1738954782311,-832.4,0.00016438,2]
[352121258,1738954782333,-500.0,0.00016438,2]
[352121259,1738954782356,-556.76,0.00016438,2]
[352121260,1738954782378,-500.0,0.00016438,2]
[352121261,1738954782400,-500.0,0.00016438,2]
[352121262,1738954782423,-500.0,0.00016438,2]
[352121263,1738954782446,-500.0,0.00016438,2]
[352121264,1738954782468,-500.0,0.00016438,2]
[352121265,1738954782491,-500.0,0.00016438,2]
[352121266,1738954782514,-500.0,0.00016438,2]
[352121267,1738954782535,-500.0,0.00016438,2]
[352121268,1738954782556,-513.63,0.00016438,2]
[352121269,1738954782582,-502.53,0.00016438,2]
[352121270,1738954782605,-500.0,0.00016438,2]
[352121271,1738954782627,-500.0,0.00016438,2]
[352121272,1738954782649,-500.0,0.00016438,2]
[352121273,1738954782672,-512.08,0.00016438,2]
[352121274,1738954782694,-500.0,0.00016438,2]
[352121275,1738954782717,-1551.62,0.00016438,2]
[352121276,1738954782740,-500.0,0.00016438,2]
[352121277,1738954782762,-500.0,0.00016438,2]
[352121278,1738954782795,-500.0,0.00016438,2]
[352121279,1738954782818,-500.0,0.00016438,2]
[352121280,1738954782840,-1536.39,0.00016438,2]
[352121281,1738954782863,-500.0,0.00016438,2]
[352121282,1738954782887,-500.0,0.00016438,2]
[352121283,1738954782911,-500.0,0.00016438,2]
[352121284,1738954782934,-500.0,0.00016438,2]
[352121285,1738954782960,-500.0,0.00016438,2]
[352121286,1738954782987,-545.64,0.00016438,2]
[352121287,1738954783011,-500.0,0.00016438,2]
[352121288,1738954783035,-673.51,0.00016438,2]
[352121289,1738954783057,-500.0,0.00016438,2]
[352121290,1738954783079,-500.0,0.00016438,2]
[352121291,1738954783102,-500.0,0.00016438,2]
[352121292,1738954783124,-500.0,0.00016438,2]
[352121293,1738954783147,-500.0,0.00016438,2]
[352121294,1738954783169,-500.0,0.00016438,2]
[352121295,1738954783191,-500.0,0.00016438,2]
[352121296,1738954783213,-500.0,0.00016438,2]
[352121297,1738954783235,-500.0,0.00016438,2]
[352121298,1738954783258,-1711.75,0.00016438,2]
[352121299,1738954783279,-500.0,0.00016438,2]
[352121300,1738954783301,-500.0,0.00016438,2]
[352121301,1738954783323,-500.0,0.00016438,2]
[352121302,1738954783344,-500.0,0.00016438,2]
[352121303,1738954783366,-500.0,0.00016438,2]
[352121304,1738954783392,-781.33,0.00016438,2]
[352121305,1738954783415,-500.0,0.00016438,2]
[352121306,1738954783437,-587.56,0.00016438,2]
[352121307,1738954783460,-500.0,0.00016438,2]
[352121308,1738954783484,-500.0,0.00016438,2]
[352121309,1738954783506,-500.0,0.00016438,2]
[352121310,1738954783528,-500.0,0.00016438,2]
[352121311,1738954783551,-407.69639398,0.00016438,2]
[352121312,1738954783575,-1324.63,0.00016438,2]
[352121313,1738954783598,-500.0,0.00016438,2]
[352121314,1738954783619,-502.46267126,0.00016438,2]
[352121315,1738954783641,-1505.72,0.00016438,2]
[352121316,1738954783664,-500.0,0.00016438,2]
[352121317,1738954783686,-497.32136,0.00016438,2]
[352121318,1738954783709,-500.0,0.00016438,2]
[352121319,1738954783733,-500.0,0.00016438,2]
[352121320,1738954783756,-500.0,0.00016438,2]
[352121321,1738954783779,-500.0,0.00016438,2]
[352121322,1738954783801,-500.0,0.00016438,2]
[352121323,1738954783823,-500.28,0.00016438,2]
[352121324,1738954783844,-695.16,0.00016438,2]
[352121325,1738954783867,-500.0,0.00016438,2]
[352121326,1738954783888,-500.0,0.00016438,2]
[352121327,1738954783911,-500.0,0.00016438,2]
[352121328,1738954783934,-500.0,0.00016438,2]
[352121329,1738954783959,-500.0,0.00016438,2]
[352121330,1738954783981,-569.80514829,0.00016438,2]
[352121331,1738954784003,-500.0,0.00016438,2]
[352121332,1738954784026,-1198.25,0.00016438,2]
[352121333,1738954784048,-500.0,0.00016438,2]
[352121334,1738954784072,-153.5,0.00016438,2]
[352121335,1738954784093,-500.0,0.00016438,2]
[352121336,1738954784116,-500.0,0.00016438,2]
[352121337,1738954784137,-327.30471525,0.00016438,2]
[352121338,1738954784907,-172.69528475,0.00016438,2]
[352121339,1738954784929,-508.04648319,0.00016438,2]
[352121340,1738954784956,-500.0,0.00016438,2]
[352121341,1738954784979,-522.58,0.00016438,2]
[352121342,1738954785002,-500.0,0.00016438,2]
[352121343,1738954785026,-500.0,0.00016438,2]
[352121344,1738954785050,-500.0,0.00016438,2]
[352121345,1738954785072,-500.0,0.00016438,2]
[352121346,1738954785094,-1676.28,0.00016438,2]
[352121347,1738954785116,-623.46,0.00016438,2]
[352121348,1738954785138,-503.2653234,0.00016438,2]
[352121349,1738954785160,-500.0,0.00016438,2]
[352121350,1738954785182,-500.0,0.00016438,2]
[352121351,1738954785204,-500.0,0.00016438,2]
[352121352,1738954785227,-500.0,0.00016438,2]
[352121353,1738954785250,-1601.64,0.00016438,2]
[352121354,1738954785272,-500.0,0.00016438,2]
[352121355,1738954785294,-500.0,0.00016438,2]
[352121356,1738954785315,-500.0,0.00016438,2]
[352121357,1738954785339,-524.09,0.00016438,2]
[352121358,1738954785361,-500.0,0.00016438,2]
[352121359,1738954785383,-500.0,0.00016438,2]
[352121360,1738954785405,-1768.21,0.00016438,2]
[352121361,1738954785427,-500.0,0.00016438,2]
[352121362,1738954785448,-500.0,0.00016438,2]
[352121363,1738954785471,-514.92,0.00016438,2]
[352121364,1738954785493,-500.0,0.00016438,2]
[352121365,1738954785515,-530.24,0.00016438,2]
[352121366,1738954785536,-545.22,0.00016438,2]
[352121367,1738954785558,-500.0,0.00016438,2]
[352121368,1738954785579,-500.0,0.00016438,2]
[352121369,1738954785605,-1678.98,0.00016438,2]
[352121370,1738954785627,-531.60269616,0.00016438,2]
[352121371,1738954785650,-500.0,0.00016438,2]
[352121372,1738954785673,-500.0,0.00016438,2]
[352121373,1738954785694,-1743.52,0.00016438,2]
[352121374,1738954785716,-1434.52,0.00016438,2]
[352121375,1738954785740,-500.0,0.00016438,2]
[352121376,1738954785762,-559.38501947,0.00016438,2]
[352121377,1738954785783,-500.0,0.00016438,2]
[352121378,1738954785806,-1105.66,0.00016438,2]
[352121379,1738954785828,-530.92,0.00016438,2]
[352121380,1738954785851,-1021.57,0.00016438,2]
[352121381,1738954785873,-500.0,0.00016438,2]
[352121382,1738954785895,-500.0,0.00016438,2]
[352121383,1738954785917,-500.0,0.00016438,2]
[352121384,1738954785939,-500.0,0.00016438,2]
[352121385,1738954785962,-500.0,0.00016438,2]
[352121386,1738954785985,-500.0,0.00016438,2]
[352121387,1738954786009,-500.0,0.00016438,2]
[352121388,1738954786032,-1033.07,0.00016438,2]
[352121389,1738954786055,-1754.72,0.00016438,2]
[352121390,1738954786077,-500.0,0.00016438,2]
[352121391,1738954786098,-500.0,0.00016438,2]
[352121392,1738954786121,-500.0,0.00016438,2]
[352121393,1738954786142,-500.0,0.00016438,2]
[352121394,1738954786375,-500.0,0.00016438,2]
[352121395,1738954786407,-586.13,0.00016438,2]
[352121396,1738954786429,-500.0,0.00016438,2]
[352121397,1738954786452,-500.0,0.00016438,2]
[352121398,1738954786474,-1346.84,0.00016438,2]
[352121399,1738954786495,-500.0,0.00016438,2]
[352121400,1738954786520,-500.0,0.00016438,2]
[352121401,1738954786543,-500.0,0.00016438,2]
[352121402,1738954786564,-500.0,0.00016438,2]
[352121403,1738954786588,-1600.13,0.00016438,2]
[352121404,1738954786610,-500.0,0.00016438,2]
[352121405,1738954786633,-500.0,0.00016438,2]
[352121406,1738954786655,-500.0,0.00016438,2]
[352121407,1738954786678,-1965.99,0.00016438,2]
[352121408,1738954786700,-500.0,0.00016438,2]
[352121409,1738954786721,-500.86557162,0.00016438,2]
[352121410,1738954786744,-507.11,0.00016438,2]
[352121411,1738954786766,-500.0,0.00016438,2]
[352121412,1738954786789,-1159.15,0.00016438,2]
[352121413,1738954786811,-500.0,0.00016438,2]
[352121414,1738954786833,-500.0,0.00016438,2]
[352121415,1738954786856,-500.0,0.00016438,2]
[352121416,1738954786879,-4131.51,0.00016438,2]
[352121417,1738954786901,-500.0,0.00016438,2]
[352121418,1738954786928,-500.0,0.00016438,2]
[352121419,1738954786953,-500.0,0.00016438,2]
[352121420,1738954786977,-500.0,0.00016438,2]
[352121421,1738954787000,-500.0,0.00016438,2]
[352121422,1738954787023,-593.78,0.00016438,2]
[352121423,1738954787049,-500.0,0.00016438,2]
[352121424,1738954787073,-500.0,0.00016438,2]
[352121425,1738954787094,-500.0,0.00016438,2]
[352121426,1738954787117,-500.0,0.00016438,2]
[352121427,1738954787139,-479.44175982,0.00016438,2]
[352121428,1738954787161,-500.0,0.00016438,2]
[352121429,1738954787183,-517.05,0.00016438,2]
[352121430,1738954787207,-500.0,0.00016438,2]
[352121431,1738954787229,-500.0,0.00016438,2]
[352121432,1738954787252,-500.0,0.00016438,2]
[352121433,1738954787274,-500.0,0.00016438,2]
[352121434,1738954787297,-500.0,0.00016438,2]
[352121435,1738954787320,-1884.36,0.00016438,2]
[352121436,1738954787347,-500.0,0.00016438,2]
[352121437,1738954787370,-500.0,0.00016438,2]
[352121438,1738954787393,-1542.87,0.00016438,2]
[352121439,1738954787416,-500.0,0.00016438,2]
[352121440,1738954787438,-1228.27,0.00016438,2]
[352121441,1738954787460,-500.0,0.00016438,2]
[352121442,1738954787484,-1497.78,0.00016438,2]
[352121443,1738954787506,-500.0,0.00016438,2]
[352121444,1738954787528,-500.0,0.00016438,2]
[352121445,1738954787552,-500.0,0.00016438,2]
[352121446,1738954787577,-1424.06,0.00016438,2]